[Event "MČR družstev mladších žáků 2024"]
[Site "Harrachov, Czech Republic"]
[Date "2024.06.15"]
[Round "5.11"]
[White "Prikryl Daniel"]
[Black "Lackova Lucie"]
[Result "0-1"]
[TimeControl "25+10"]
[WhiteFideId "23745770"]
[BlackFideId "23731800"]
[WhiteElo "1199"]
[BlackElo "1601"]

1. e4 {[%clk 00:25:18]} {[%emt 00:00:01]} c6 {[%clk 00:25:19]} {[%emt
00:00:01]} 2. Nf3 {[%clk 00:25:25]} {[%emt 00:00:03]} d5 {[%clk 00:25:28]}
{[%emt 00:00:01]} 3. exd5 {[%clk 00:25:31]} {[%emt 00:00:04]} cxd5 {[%clk
00:25:37]} {[%emt 00:00:01]} 4. d4 {[%emt 00:00:07]} Bg4 {[%clk 00:25:36]}
{[%emt 00:00:10]} 5. Nc3 {[%clk 00:25:40]} {[%emt 00:00:05]} Nc6 {[%clk
00:25:42]} {[%emt 00:00:04]} 6. Be2 {[%clk 00:25:26]} {[%emt 00:00:24]} e6
{[%clk 00:25:37]} {[%emt 00:00:16]} 7. h3 {[%clk 00:25:26]} {[%emt 00:00:10]}
Bh5 {[%clk 00:25:43]} {[%emt 00:00:04]} 8. g4 {[%clk 00:25:28]} {[%emt
00:00:08]} Bg6 {[%clk 00:25:49]} {[%emt 00:00:03]} 9. Bf4 {[%clk 00:25:27]}
{[%emt 00:00:10]} Nf6 {[%clk 00:25:35]} {[%emt 00:00:25]} 10. Bd3 {[%clk
00:25:24]} {[%emt 00:00:13]} Bxd3 {[%clk 00:25:31]} {[%emt 00:00:14]} 11. cxd3
{[%clk 00:25:29]} {[%emt 00:00:04]} Qb6 {[%clk 00:25:28]} {[%emt 00:00:13]} 12.
Qd2 {[%clk 00:24:33]} {[%emt 00:01:04]} Nxd4 {[%clk 00:24:34]} {[%emt
00:01:07]} 13. Ne5 {[%clk 00:23:50]} {[%emt 00:00:53]} Bd6 {[%clk 00:24:12]}
{[%emt 00:00:31]} 14. O-O {[%clk 00:22:24]} {[%emt 00:01:34]} Bxe5 {[%clk
00:24:16]} {[%emt 00:00:09]} 15. Qc1 {[%clk 00:22:09]} {[%emt 00:00:25]} Bxf4
{[%clk 00:24:05]} {[%emt 00:00:21]} 16. Qxf4 {[%clk 00:22:11]} {[%emt
00:00:08]} Rc8 {[%clk 00:23:55]} {[%emt 00:00:20]} 17. Kh1 {[%clk 00:22:01]}
{[%emt 00:00:19]} Nc6 {[%clk 00:23:35]} {[%emt 00:00:30]} 18. b3 {[%clk
00:21:07]} {[%emt 00:01:04]} Ne7 {[%clk 00:23:19]} {[%emt 00:00:26]} 19. Ne2
{[%clk 00:20:48]} {[%emt 00:00:24]} Ng6 {[%clk 00:23:11]} {[%emt 00:00:22]} 20.
Qd2 {[%clk 00:20:27]} {[%emt 00:00:26]} O-O {[%clk 00:22:28]} {[%emt 00:00:58]}
21. g5 {[%clk 00:20:06]} {[%emt 00:00:30]} Nd7 {[%clk 00:22:25]} {[%emt
00:00:14]} 22. Ng3 {[%clk 00:19:47]} {[%emt 00:00:27]} Nde5 {[%clk 00:22:21]}
{[%emt 00:00:16]} 23. Kg2 {[%clk 00:19:14]} {[%emt 00:00:40]} Nh4+ {[%clk
00:21:08]} {[%emt 00:01:24]} 24. Kh1 {[%clk 00:18:58]} {[%emt 00:00:21]} Nef3
{[%clk 00:20:06]} {[%emt 00:01:17]} 25. Qf4 {[%clk 00:18:18]} {[%emt 00:00:51]}
Rc2 {[%clk 00:18:53]} {[%emt 00:01:24]} 26. d4 {[%clk 00:17:29]} {[%emt
00:00:57]} Qxd4 {[%clk 00:18:40]} {[%emt 00:00:27]} 27. Qxd4 {[%clk 00:17:27]}
{[%emt 00:00:12]} Nxd4 {[%clk 00:18:46]} {[%emt 00:00:03]} 28. Kg1 {[%clk
00:17:12]} {[%emt 00:00:21]} Nhf3+ {[%clk 00:18:33]} {[%emt 00:00:27]} 29. Kh1
{[%clk 00:17:09]} {[%emt 00:00:11]} Nxg5 {[%clk 00:18:37]} {[%emt 00:00:07]} 30.
Kg2 {[%clk 00:17:02]} {[%emt 00:00:17]} Ngf3 {[%clk 00:18:02]} {[%emt
00:00:45]} 31. b4 {[%clk 00:16:55]} {[%emt 00:00:15]} Rb2 {[%clk 00:17:19]}
{[%emt 00:00:55]} 32. a3 {[%clk 00:16:55]} {[%emt 00:00:10]} Ne5 {[%clk
00:17:13]} {[%emt 00:00:16]} 33. Rfe1 {[%clk 00:16:40]} {[%emt 00:00:24]} Nc2
{[%clk 00:17:09]} {[%emt 00:00:15]} 34. Re2 {[%clk 00:16:20]} {[%emt 00:00:25]}
Nxa1 {[%clk 00:16:43]} {[%emt 00:00:41]} 35. Rxb2 {[%clk 00:16:26]} {[%emt
00:00:04]} Nc4 {[%clk 00:16:40]} {[%emt 00:00:13]} 36. Rb1 {[%clk 00:16:27]}
{[%emt 00:00:08]} Nc2 {[%clk 00:16:48]} {[%emt 00:00:03]} 37. Ne2 {[%clk
00:16:17]} {[%emt 00:00:18]} N2xa3 {[%clk 00:16:55]} {[%emt 00:00:06]} 38. Rb3
{[%clk 00:16:19]} {[%emt 00:00:04]} Nb5 {[%clk 00:17:00]} {[%emt 00:00:08]} 39.
Kf3 {[%clk 00:16:16]} {[%emt 00:00:09]} Nd2+ {[%clk 00:17:08]} {[%emt
00:00:06]} 0-1



[ePGN "0.1;DGT LiveChess/2.2.6"]

[Event "MČR družstev mladších žáků 2024"]
[Site "Harrachov, Czech Republic"]
[Date "2024.06.15"]
[Round "5.12"]
[White "Hlavacek Pavel"]
[Black "Pecinka Lukas"]
[Result "1-0"]
[TimeControl "25+10"]
[WhiteFideId "23761768"]
[BlackFideId "23763574"]
[WhiteElo "1307"]
[BlackElo "1121"]

1. d4 {[%clk 00:25:18]} {[%emt 00:00:01]} d5 {[%clk 00:25:19]} {[%emt
00:00:02]} 2. c4 {[%clk 00:25:26]} {[%emt 00:00:02]} e6 {[%clk 00:25:26]}
{[%emt 00:00:03]} 3. Nc3 {[%clk 00:25:34]} {[%emt 00:00:01]} Nf6 {[%clk
00:25:33]} {[%emt 00:00:04]} 4. Bg5 {[%clk 00:25:43]} {[%emt 00:00:02]} Bb4
{[%clk 00:25:34]} {[%emt 00:00:09]} 5. Nf3 {[%clk 00:25:47]} {[%emt 00:00:06]}
h6 {[%clk 00:25:35]} {[%emt 00:00:09]} 6. Bh4 {[%clk 00:25:55]} {[%emt
00:00:02]} g5 {[%clk 00:25:44]} {[%emt 00:00:01]} 7. Bg3 {[%clk 00:26:05]}
{[%emt 00:00:01]} Nc6 {[%clk 00:25:51]} {[%emt 00:00:03]} 8. e3 {[%clk
00:26:05]} {[%emt 00:00:09]} Ne4 {[%clk 00:25:54]} {[%emt 00:00:07]} 9. Qc2
{[%clk 00:26:11]} {[%emt 00:00:04]} Nxg3 {[%clk 00:25:42]} {[%emt 00:00:23]} 10.
hxg3 {[%clk 00:26:19]} {[%emt 00:00:02]} Qf6 {[%clk 00:25:42]} {[%emt
00:00:10]} 11. cxd5 {[%emt 00:00:09]} exd5 {[%clk 00:25:45]} {[%emt 00:00:05]}
12. Bd3 {[%clk 00:26:29]} {[%emt 00:00:02]} Be6 {[%clk 00:25:45]} {[%emt
00:00:10]} 13. Nd2 {[%clk 00:24:43]} {[%emt 00:01:55]} O-O-O {[%clk 00:25:40]}
{[%emt 00:00:17]} 14. O-O-O {[%clk 00:23:10]} {[%emt 00:01:43]} Qxf2 {[%clk
00:25:34]} {[%emt 00:00:16]} 15. Kb1 {[%clk 00:22:07]} {[%emt 00:01:11]} Qxe3
{[%clk 00:25:29]} {[%emt 00:00:18]} 16. Nb3 {[%clk 00:21:04]} {[%emt 00:01:11]}
Nxd4 {[%clk 00:24:58]} {[%emt 00:00:41]} 17. Nxd4 {[%clk 00:21:12]} {[%emt
00:00:02]} Qxd4 {[%clk 00:25:07]} {[%emt 00:00:01]} 18. Qb3 {[%clk 00:20:14]}
{[%emt 00:01:05]} Bg4 {[%clk 00:25:02]} {[%emt 00:00:18]} 19. Be2 {[%clk
00:19:51]} {[%emt 00:00:34]} Bf5+ {[%clk 00:24:53]} {[%emt 00:00:17]} 20. Ka1
{[%clk 00:19:40]} {[%emt 00:00:22]} Qc5 {[%clk 00:24:23]} {[%emt 00:00:40]} 21.
Nxd5 {[%clk 00:17:39]} {[%emt 00:02:12]} Bc2 {[%clk 00:24:02]} {[%emt
00:00:31]} 22. Qxb4 {[%clk 00:17:43]} {[%emt 00:00:06]} Qxb4 {[%clk 00:24:04]}
{[%emt 00:00:08]} 23. Nxb4 {[%clk 00:17:50]} {[%emt 00:00:03]} Bxd1 {[%clk
00:24:12]} {[%emt 00:00:01]} 24. Rxd1 {[%clk 00:17:59]} {[%emt 00:00:01]} Rxd1+
{[%clk 00:24:09]} {[%emt 00:00:13]} 25. Bxd1 {[%clk 00:18:07]} {[%emt
00:00:01]} Rd8 {[%clk 00:24:17]} {[%emt 00:00:01]} 26. Bc2 {[%clk 00:18:15]}
{[%emt 00:00:02]} Rd2 {[%clk 00:24:24]} {[%emt 00:00:03]} 27. Be4 {[%clk
00:17:52]} {[%emt 00:00:31]} Rd1+ {[%clk 00:24:33]} {[%emt 00:00:05]} 28. Bb1
{[%clk 00:18:01]} {[%emt 00:00:02]} Rg1 {[%clk 00:24:38]} {[%emt 00:00:22]} 29.
g4 {[%clk 00:17:39]} {[%emt 00:00:31]} Rxg2 {[%clk 00:24:45]} {[%emt 00:00:04]}
30. a3 {[%clk 00:17:45]} {[%emt 00:00:04]} Rxg4 {[%clk 00:24:51]} {[%emt
00:00:04]} 31. Bf5+ {[%clk 00:17:53]} {[%emt 00:00:02]} Kd8 {[%clk 00:24:57]}
{[%emt 00:00:03]} 32. Bxg4 {[%clk 00:18:02]} {[%emt 00:00:02]} f6 {[%clk
00:25:05]} {[%emt 00:00:02]} 33. Kb1 {[%clk 00:18:11]} {[%emt 00:00:01]} Ke7
{[%clk 00:25:14]} {[%emt 00:00:01]} 34. Kc2 {[%clk 00:18:19]} {[%emt 00:00:02]}
Kd6 {[%clk 00:25:23]} 35. Kd3 {[%clk 00:18:25]} {[%emt 00:00:03]} Ke5 {[%clk
00:25:33]} 36. Ke3 {[%clk 00:18:24]} {[%emt 00:00:11]} f5 {[%clk 00:25:42]}
{[%emt 00:00:01]} 37. Bh5 {[%clk 00:18:31]} {[%emt 00:00:03]} f4+ {[%clk
00:25:51]} {[%emt 00:00:01]} 38. Kf3 {[%clk 00:18:40]} Kf5 {[%clk 00:25:56]}
{[%emt 00:00:05]} 39. Nd3 {[%clk 00:18:40]} {[%emt 00:00:10]} b5 {[%clk
00:25:58]} {[%emt 00:00:08]} 40. b4 {[%clk 00:18:46]} {[%emt 00:00:03]} a6
{[%clk 00:26:00]} {[%emt 00:00:08]} 41. Nc5 {[%clk 00:18:55]} {[%emt 00:00:02]}
g4+ {[%clk 00:26:04]} {[%emt 00:00:06]} 42. Bxg4+ {[%clk 00:18:57]} {[%emt
00:00:08]} Kg5 {[%clk 00:26:13]} {[%emt 00:00:01]} 43. Nxa6 {[%clk 00:19:03]}
{[%emt 00:00:03]} h5 {[%clk 00:26:22]} {[%emt 00:00:01]} 44. Bxh5 {[%clk
00:19:10]} {[%emt 00:00:03]} Kxh5 {[%clk 00:26:31]} {[%emt 00:00:02]} 45. Kxf4
{[%clk 00:19:18]} {[%emt 00:00:01]} Kg6 {[%clk 00:26:40]} 46. Nxc7 {[%clk
00:19:26]} {[%emt 00:00:02]} Kf6 {[%clk 00:26:48]} {[%emt 00:00:01]} 47. Nxb5
{[%emt 00:00:02]} Ke6 48. Ke4 {[%clk 00:19:41]} {[%emt 00:00:04]} Kd7 {[%clk
00:27:06]} {[%emt 00:00:02]} 49. Kd5 {[%clk 00:19:48]} {[%emt 00:00:02]} Kc8
{[%clk 00:27:14]} {[%emt 00:00:01]} 50. a4 {[%clk 00:19:57]} {[%emt 00:00:03]}
Kb7 {[%clk 00:27:22]} {[%emt 00:00:01]} 51. Nd4 {[%clk 00:20:06]} {[%emt
00:00:02]} Kb6 {[%clk 00:27:31]} {[%emt 00:00:01]} 52. Kc4 {[%clk 00:20:13]}
{[%emt 00:00:03]} Ka6 {[%clk 00:27:40]} {[%emt 00:00:01]} 53. a5 {[%clk
00:20:17]} {[%emt 00:00:06]} Kb7 {[%clk 00:27:47]} {[%emt 00:00:02]} 54. b5
{[%clk 00:20:26]} {[%emt 00:00:01]} Ka7 {[%clk 00:27:57]} 55. Kc5 {[%clk
00:20:35]} {[%emt 00:00:02]} Kb7 {[%clk 00:28:06]} 56. Nc2 {[%clk 00:20:44]}
{[%emt 00:00:02]} Kc7 {[%clk 00:28:14]} {[%emt 00:00:02]} 57. a6 {[%clk
00:20:53]} {[%emt 00:00:01]} Kb8 {[%clk 00:28:23]} 58. b6 {[%clk 00:21:02]}
{[%emt 00:00:02]} Ka8 {[%clk 00:28:32]} 59. Kc6 {[%clk 00:21:11]} {[%emt
00:00:01]} Kb8 {[%clk 00:28:41]} {[%emt 00:00:01]} 60. a7+ {[%clk 00:21:12]}
{[%emt 00:00:09]} Ka8 {[%clk 00:28:50]} {[%emt 00:00:01]} 61. b7+ {[%clk
00:21:21]} {[%emt 00:00:01]} 1-0



[ePGN "0.1;DGT LiveChess/2.2.6"]

[Event "MČR družstev mladších žáků 2024"]
[Site "Harrachov, Czech Republic"]
[Date "2024.06.15"]
[Round "5.13"]
[White "Velim Vojtech"]
[Black "Padivy Jan"]
[Result "1-0"]
[TimeControl "25+10"]
[WhiteFideId "23749407"]
[BlackFideId "23752904"]
[WhiteElo "1814"]
[BlackElo "1500"]

1. d4 {[%clk 00:25:18]} {[%emt 00:00:01]} e6 {[%clk 00:25:19]} {[%emt
00:00:01]} 2. Nf3 {[%clk 00:25:18]} {[%emt 00:00:10]} b6 {[%clk 00:25:27]}
{[%emt 00:00:01]} 3. c4 {[%clk 00:25:25]} {[%emt 00:00:03]} Bb7 {[%clk
00:25:36]} {[%emt 00:00:02]} 4. Nc3 {[%clk 00:25:34]} {[%emt 00:00:02]} Bb4
{[%clk 00:25:41]} {[%emt 00:00:05]} 5. g3 {[%clk 00:25:42]} {[%emt 00:00:02]}
Nf6 {[%clk 00:25:47]} {[%emt 00:00:04]} 6. Bg2 {[%clk 00:25:51]} {[%emt
00:00:01]} d6 {[%clk 00:25:54]} {[%emt 00:00:03]} 7. a3 {[%clk 00:25:57]}
{[%emt 00:00:04]} Bxc3+ {[%clk 00:26:02]} {[%emt 00:00:02]} 8. bxc3 {[%clk
00:26:06]} {[%emt 00:00:01]} Nbd7 {[%clk 00:26:09]} {[%emt 00:00:02]} 9. O-O
{[%clk 00:26:13]} {[%emt 00:00:02]} O-O {[%clk 00:26:15]} {[%emt 00:00:04]} 10.
Bg5 {[%clk 00:26:09]} {[%emt 00:00:14]} h6 {[%clk 00:26:20]} {[%emt 00:00:05]}
11. Bxf6 {[%clk 00:26:04]} {[%emt 00:00:15]} Nxf6 {[%clk 00:26:25]} {[%emt
00:00:05]} 12. Nd2 {[%clk 00:26:13]} {[%emt 00:00:01]} Bxg2 {[%clk 00:26:26]}
{[%emt 00:00:10]} 13. Kxg2 {[%clk 00:26:21]} {[%emt 00:00:01]} c5 {[%clk
00:26:34]} {[%emt 00:00:01]} 14. e4 {[%clk 00:26:26]} {[%emt 00:00:05]} Qc7
{[%clk 00:26:05]} {[%emt 00:00:39]} 15. d5 {[%clk 00:26:23]} {[%emt 00:00:13]}
exd5 {[%clk 00:25:49]} {[%emt 00:00:26]} 16. cxd5 {[%clk 00:26:32]} {[%emt
00:00:01]} Rfe8 {[%clk 00:25:07]} {[%emt 00:00:51]} 17. Qc2 {[%clk 00:26:41]}
{[%emt 00:00:02]} a6 {[%clk 00:23:38]} {[%emt 00:01:39]} 18. Rfe1 {[%clk
00:26:32]} {[%emt 00:00:19]} Nd7 {[%clk 00:20:07]} {[%emt 00:03:40]} 19. f4
{[%clk 00:26:16]} {[%emt 00:00:26]} g6 {[%clk 00:20:03]} {[%emt 00:00:15]} 20.
Nf3 {[%clk 00:26:10]} {[%emt 00:00:16]} b5 {[%clk 00:18:44]} {[%emt 00:01:28]}
21. Re2 {[%clk 00:25:16]} {[%emt 00:01:05]} Re7 {[%clk 00:17:55]} {[%emt
00:01:00]} 22. Rae1 {[%clk 00:25:09]} {[%emt 00:00:17]} Rae8 {[%clk 00:18:01]}
{[%emt 00:00:04]} 23. Qd2 {[%clk 00:25:16]} {[%emt 00:00:03]} Kg7 {[%clk
00:16:29]} {[%emt 00:01:42]} 24. e5 {[%clk 00:24:00]} {[%emt 00:01:26]} Qb8
{[%clk 00:12:15]} {[%emt 00:04:19]} 25. e6 {[%clk 00:23:44]} {[%emt 00:00:31]}
fxe6 {[%clk 00:11:27]} {[%emt 00:00:58]} 26. dxe6 {[%clk 00:23:54]} Nf8 {[%clk
00:11:30]} {[%emt 00:00:07]} 27. Qd5 {[%clk 00:22:59]} {[%emt 00:01:05]} Qc8
{[%clk 00:10:23]} {[%emt 00:01:15]} 28. f5 {[%clk 00:20:10]} {[%emt 00:03:01]}
gxf5 {[%clk 00:09:41]} {[%emt 00:00:52]} 29. Nh4 {[%clk 00:20:18]} Rxe6 {[%clk
00:08:28]} {[%emt 00:01:24]} 30. Nxf5+ {[%clk 00:20:26]} {[%emt 00:00:02]} Kf6
{[%clk 00:07:23]} {[%emt 00:01:07]} 31. Rf2 {[%clk 00:19:46]} {[%emt 00:00:59]}
Kg6 {[%clk 00:02:22]} {[%emt 00:05:11]} 32. Nxd6 {[%clk 00:18:44]} {[%emt
00:01:11]} Qa8 {[%clk 00:00:53]} {[%emt 00:01:39]} 33. Qxa8 {[%clk 00:18:37]}
{[%emt 00:00:16]} Rxa8 {[%clk 00:01:01]} {[%emt 00:00:04]} 34. Rxf8 {[%clk
00:18:26]} {[%emt 00:00:21]} Rxe1 {[%clk 00:00:23]} {[%emt 00:00:48]} 35. Rxa8
{[%clk 00:18:32]} {[%emt 00:00:05]} Re2+ {[%clk 00:00:27]} {[%emt 00:00:07]} 36.
Kh3 {[%clk 00:18:37]} {[%emt 00:00:03]} Rc2 {[%clk 00:00:35]} {[%emt 00:00:02]}
37. Rxa6 {[%clk 00:18:45]} {[%emt 00:00:02]} Kg7 {[%clk 00:00:41]} {[%emt
00:00:04]} 38. Nxb5 {[%clk 00:18:50]} {[%emt 00:00:05]} c4 {[%clk 00:00:44]}
{[%emt 00:00:07]} 39. Ra4 {[%clk 00:18:49]} {[%emt 00:00:10]} Re2 {[%clk
00:00:18]} {[%emt 00:00:36]} 40. Rxc4 {[%clk 00:18:56]} {[%emt 00:00:04]} 1-0



[ePGN "0.1;DGT LiveChess/2.2.6"]

[Event "MČR družstev mladších žáků 2024"]
[Site "Harrachov, Czech Republic"]
[Date "2024.06.15"]
[Round "5.14"]
[White "Koupil Stepan"]
[Black "Kala Jakub"]
[Result "0-1"]
[TimeControl "25+10"]
[WhiteFideId "23742119"]
[BlackFideId "23753897"]
[WhiteElo "1423"]
[BlackElo "1657"]

1. e4 {[%clk 00:25:19]} {[%emt 00:24:18]} c6 {[%clk 00:25:17]} {[%emt
00:00:03]} 2. d4 {[%clk 00:25:26]} {[%emt 00:00:03]} d5 {[%clk 00:25:26]}
{[%emt 00:00:01]} 3. exd5 {[%clk 00:25:34]} {[%emt 00:00:02]} cxd5 {[%clk
00:25:35]} {[%emt 00:00:01]} 4. Bd3 {[%clk 00:25:43]} {[%emt 00:00:01]} Nf6
{[%clk 00:25:41]} {[%emt 00:00:04]} 5. h3 {[%clk 00:25:52]} {[%emt 00:00:02]}
Nc6 {[%clk 00:25:47]} {[%emt 00:00:04]} 6. Nf3 {[%clk 00:26:00]} {[%emt
00:00:02]} g6 {[%clk 00:25:49]} {[%emt 00:00:08]} 7. c3 {[%clk 00:25:57]}
{[%emt 00:00:13]} Bf5 {[%clk 00:25:53]} {[%emt 00:00:07]} 8. O-O {[%clk
00:25:42]} {[%emt 00:00:25]} Bg7 {[%clk 00:24:59]} {[%emt 00:01:04]} 9. Bf4
{[%clk 00:25:22]} {[%emt 00:00:29]} Ne4 {[%clk 00:24:08]} {[%emt 00:01:02]} 10.
Re1 {[%clk 00:24:54]} {[%emt 00:00:38]} O-O {[%clk 00:23:13]} {[%emt 00:01:05]}
11. Ng5 {[%clk 00:23:23]} {[%emt 00:01:39]} e5 {[%clk 00:19:12]} {[%emt
00:04:13]} 12. dxe5 {[%clk 00:20:08]} {[%emt 00:03:24]} Nxg5 {[%clk 00:19:06]}
{[%emt 00:00:17]} 13. Bxf5 {[%clk 00:18:10]} {[%emt 00:02:08]} gxf5 {[%clk
00:19:02]} {[%emt 00:00:14]} 14. Bxg5 {[%clk 00:18:10]} {[%emt 00:00:10]} Qxg5
{[%clk 00:19:07]} {[%emt 00:00:05]} 15. Nd2 {[%clk 00:17:52]} {[%emt 00:00:28]}
Nxe5 {[%clk 00:18:05]} {[%emt 00:01:12]} 16. Nf3 {[%clk 00:17:00]} {[%emt
00:01:03]} Nxf3+ {[%clk 00:17:49]} {[%emt 00:00:26]} 17. Qxf3 {[%clk 00:17:08]}
{[%emt 00:00:02]} d4 {[%clk 00:16:11]} {[%emt 00:01:49]} 18. cxd4 {[%clk
00:15:58]} {[%emt 00:01:19]} Bxd4 {[%clk 00:16:10]} {[%emt 00:00:11]} 19. Rad1
{[%clk 00:16:05]} {[%emt 00:00:03]} Rad8 {[%clk 00:14:41]} {[%emt 00:01:37]} 20.
h4 {[%clk 00:14:14]} {[%emt 00:02:04]} Qxh4 {[%clk 00:12:15]} {[%emt 00:02:36]}
21. Qxf5 {[%clk 00:14:08]} {[%emt 00:00:14]} Qf6 {[%clk 00:12:00]} {[%emt
00:00:23]} 22. Qg4+ {[%clk 00:14:00]} {[%emt 00:00:21]} Kh8 {[%clk 00:11:22]}
{[%emt 00:00:48]} 23. Rf1 {[%clk 00:13:56]} {[%emt 00:00:12]} Rg8 {[%clk
00:10:54]} {[%emt 00:00:39]} 24. Qe2 {[%clk 00:13:18]} {[%emt 00:00:47]} Qc6
{[%clk 00:09:50]} {[%emt 00:01:14]} 25. g3 {[%clk 00:12:14]} {[%emt 00:01:15]}
Rxg3+ {[%clk 00:09:51]} {[%emt 00:00:10]} 0-1



[ePGN "0.1;DGT LiveChess/2.2.6"]

[Event "MČR družstev mladších žáků 2024"]
[Site "Harrachov, Czech Republic"]
[Date "2024.06.15"]
[Round "5.15"]
[White "Levchenko Alisa"]
[Black "Sara David"]
[Result "1-0"]
[TimeControl "25+10"]
[WhiteFideId "23760311"]
[BlackFideId "23746599"]
[WhiteElo "1302"]
[BlackElo "1379"]

1. d4 {[%clk 00:25:18]} {[%emt 00:00:02]} d5 {[%clk 00:25:16]} {[%emt
00:00:05]} 2. c4 {[%clk 00:25:27]} {[%emt 00:00:01]} e6 {[%clk 00:25:24]}
{[%emt 00:00:02]} 3. Nf3 {[%clk 00:25:34]} {[%emt 00:00:03]} c5 {[%clk
00:25:32]} {[%emt 00:00:02]} 4. cxd5 {[%clk 00:25:38]} {[%emt 00:00:06]} exd5
{[%clk 00:25:39]} {[%emt 00:00:03]} 5. dxc5 {[%clk 00:25:34]} {[%emt 00:00:13]}
Bxc5 {[%clk 00:25:46]} {[%emt 00:00:04]} 6. Nc3 {[%clk 00:25:08]} {[%emt
00:00:36]} Bb4 {[%clk 00:25:19]} {[%emt 00:00:38]} 7. a3 {[%clk 00:24:11]}
{[%emt 00:01:07]} Bxc3+ {[%clk 00:25:27]} {[%emt 00:00:02]} 8. bxc3 {[%clk
00:24:20]} {[%emt 00:00:01]} Bf5 {[%clk 00:25:26]} {[%emt 00:00:10]} 9. Nd4
{[%clk 00:23:00]} {[%emt 00:01:30]} Bg6 {[%clk 00:25:09]} {[%emt 00:00:27]} 10.
Bf4 {[%clk 00:22:08]} {[%emt 00:01:01]} a6 {[%clk 00:23:16]} {[%emt 00:02:04]}
11. Qb3 {[%clk 00:20:37]} {[%emt 00:01:40]} Qd7 {[%clk 00:20:52]} {[%emt
00:02:34]} 12. e3 {[%clk 00:19:21]} {[%emt 00:01:27]} Ne7 {[%clk 00:19:27]}
{[%emt 00:01:35]} 13. Be2 {[%clk 00:16:45]} {[%emt 00:02:46]} O-O {[%clk
00:19:09]} {[%emt 00:00:28]} 14. O-O {[%clk 00:16:47]} {[%emt 00:00:09]} Nbc6
{[%clk 00:19:04]} {[%emt 00:00:15]} 15. Qb6 {[%clk 00:12:38]} {[%emt 00:04:18]}
Nxd4 {[%clk 00:16:13]} {[%emt 00:03:01]} 16. cxd4 {[%clk 00:12:20]} {[%emt
00:00:28]} Rac8 {[%clk 00:15:51]} {[%emt 00:00:24]} 17. Rac1 {[%clk 00:11:41]}
{[%emt 00:00:57]} Nc6 {[%clk 00:13:29]} {[%emt 00:02:32]} 18. h3 {[%clk
00:09:48]} {[%emt 00:02:03]} Rfe8 {[%clk 00:12:58]} {[%emt 00:00:41]} 19. Bg4
{[%clk 00:09:17]} {[%emt 00:00:41]} f5 {[%clk 00:12:48]} {[%emt 00:00:18]} 20.
Bf3 {[%clk 00:08:30]} {[%emt 00:00:58]} Re6 {[%clk 00:12:26]} {[%emt 00:00:32]}
21. Rc5 {[%clk 00:07:31]} {[%emt 00:01:09]} Ne7 {[%clk 00:10:33]} {[%emt
00:02:00]} 22. Qb3 {[%clk 00:06:04]} {[%emt 00:01:40]} Rxc5 {[%clk 00:10:28]}
{[%emt 00:00:16]} 23. dxc5 {[%clk 00:06:11]} {[%emt 00:00:02]} Bf7 {[%clk
00:10:25]} {[%emt 00:00:13]} 24. Bd6 {[%clk 00:05:34]} {[%emt 00:00:47]} d4
{[%clk 00:08:23]} {[%emt 00:02:11]} 25. Qxb7 {[%clk 00:04:21]} {[%emt
00:01:23]} Qxb7 {[%clk 00:07:59]} {[%emt 00:00:34]} 26. Bxb7 {[%clk 00:04:28]}
{[%emt 00:00:03]} dxe3 {[%clk 00:07:34]} {[%emt 00:00:36]} 27. fxe3 {[%clk
00:04:05]} {[%emt 00:00:34]} Kf8 {[%clk 00:06:02]} {[%emt 00:01:39]} 28. Bxa6
{[%clk 00:03:35]} {[%emt 00:00:42]} Ke8 {[%clk 00:05:21]} {[%emt 00:00:38]} 29.
Bxe7 {[%clk 00:02:46]} {[%emt 00:01:12]} Kxe7 {[%clk 00:05:23]} {[%emt
00:00:08]} 30. Bc4 {[%clk 00:02:46]} {[%emt 00:00:08]} Rxe3 {[%clk 00:04:50]}
{[%emt 00:00:44]} 31. Bxf7 {[%clk 00:02:52]} {[%emt 00:00:05]} Kxf7 {[%clk
00:04:59]} {[%emt 00:00:01]} 32. Rxf5+ {[%clk 00:02:57]} {[%emt 00:00:04]} Ke6
{[%clk 00:05:04]} {[%emt 00:00:05]} 33. Rf3 {[%clk 00:03:03]} {[%emt 00:00:05]}
Re5 {[%clk 00:04:41]} {[%emt 00:00:33]} 34. Rc3 {[%clk 00:02:59]} {[%emt
00:00:14]} Kd7 {[%clk 00:04:42]} {[%emt 00:00:06]} 35. c6+ {[%clk 00:02:58]}
{[%emt 00:00:14]} Kc7 {[%clk 00:04:51]} 36. Kf2 {[%clk 00:03:01]} {[%emt
00:00:07]} g6 {[%clk 00:04:30]} {[%emt 00:00:31]} 37. Kf3 {[%clk 00:02:47]}
{[%emt 00:00:24]} Rf5+ {[%clk 00:04:18]} {[%emt 00:00:23]} 38. Ke4 {[%clk
00:02:48]} {[%emt 00:00:09]} Rf2 {[%clk 00:04:12]} {[%emt 00:00:16]} 39. g4
{[%clk 00:02:55]} {[%emt 00:00:03]} Rf6 {[%clk 00:03:08]} {[%emt 00:01:11]} 40.
Ke5 {[%clk 00:03:02]} {[%emt 00:00:06]} Rd6 {[%clk 00:03:17]} {[%emt 00:00:01]}
41. a4 {[%clk 00:03:03]} {[%emt 00:00:08]} Rd1 {[%clk 00:03:01]} {[%emt
00:00:19]} 42. Kf6 {[%clk 00:03:01]} {[%emt 00:00:19]} Rg1 {[%clk 00:02:53]}
{[%emt 00:00:17]} 43. Kg7 {[%clk 00:03:02]} {[%emt 00:00:08]} h5 {[%clk
00:03:00]} {[%emt 00:00:03]} 44. gxh5 {[%clk 00:02:53]} {[%emt 00:00:20]} gxh5
{[%clk 00:02:50]} {[%emt 00:00:20]} 45. Kh6 {[%clk 00:02:59]} {[%emt 00:00:03]}
Ra1 {[%clk 00:02:57]} {[%emt 00:00:03]} 46. Rc4 {[%clk 00:02:58]} {[%emt
00:00:11]} Rh1 {[%clk 00:03:02]} {[%emt 00:00:06]} 47. h4 {[%clk 00:03:05]}
{[%emt 00:00:03]} Kd8 {[%emt 00:00:37]} 1-0



[ePGN "0.1;DGT LiveChess/2.2.6"]